Workbook

Sheet cj
A1: 附件：
A2: 2023年铜仁市市直事业单位公开招聘工作人员总成绩及进入体检人员名单
A3: 序号 | B3: 姓名 | C3: 性别 | D3: 准考证号 | E3: 招聘单位代码及名称 | F3: 岗位代码及名称 | G3: 笔试成绩 | H3: 笔试折算 60% | I3: 面试成绩 | J3: 面试折算 40% | K3: 总成绩 | L3: 排名 | M3: 是否进入体检
A4: 1 | B4: 姚江英 | C4: 女 | D4: 1152220108328 | E4: 001铜仁儿童福利院 | F4: 01专业技术人员 | G4: 201 | H4: =G4/3*60% -> 40.20 | I4: 78.06 | J4: =I4*40% -> 31.22 | K4: =H4+J4 -> 71.42 | L4: 1 | M4: 是
A5: 2 | B5: 郑学银 | C5: 男 | D5: 1152220102609 | E5: 001铜仁儿童福利院 | F5: 01专业技术人员 | G5: 197 | H5: =G5/3*60% -> 39.40 | I5: 78.24 | J5: =I5*40% -> 31.30 | K5: 70.70 | L5: 2
A6: 3 | B6: 曾小兰 | C6: 女 | D6: 1152220109721 | E6: 001铜仁儿童福利院 | F6: 01专业技术人员 | G6: 194 | H6: 38.80 | I6: 77.66 | J6: 31.06 | K6: 69.86 | L6: 3
A7: 4 | B7: 张守欣 | C7: 女 | D7: 1152220107529 | E7: 001铜仁儿童福利院 | F7: 01专业技术人员 | G7: 194 | H7: 38.80 | I7: 77.58 | J7: 31.03 | K7: 69.83 | L7: 4
A8: 5 | B8: 麦伟玲 | C8: 女 | D8: 5252220201709 | E8: 001铜仁儿童福利院 | F8: 02专业技术人员 | G8: 172.6 | H8: 34.52 | I8: 73.54 | J8: 29.42 | K8: 63.94 | L8: 1 | M8: 是
A9: 6 | B9: 毛阿芳 | C9: 女 | D9: 1152220111130 | E9: 002铜仁交通运输综合行政执法支队 | F9: 03工作人员 | G9: 200.5 | H9: 40.10 | I9: 79.98 | J9: 31.99 | K9: 72.09 | L9: 1 | M9: 是
A10: 7 | B10: 周文豪 | C10: 男 | D10: 1152220110121 | E10: 002铜仁交通运输综合行政执法支队 | F10: 03工作人员 | G10: 196 | H10: 39.20 | I10: 78.24 | J10: 31.30 | K10: 70.50 | L10: 2 | M10: 是
A11: 8 | B11: 杨浩 | C11: 男 | D11: 1152220101928 | E11: 002铜仁交通运输综合行政执法支队 | F11: 03工作人员 | G11: 195 | H11: 39.00 | I11: 76.14 | J11: 30.46 | K11: 69.46 | L11: 3
A12: 9 | B12: 熊昆骏 | C12: 男 | D12: 1152220103303 | E12: 002铜仁交通运输综合行政执法支队 | F12: 03工作人员 | G12: 192 | H12: 38.40 | I12: 77.24 | J12: 30.90 | K12: 69.30 | L12: 4
A13: 10 | B13: 冯兰婷 | C13: 女 | D13: 1152220103609 | E13: 002铜仁交通运输综合行政执法支队 | F13: 03工作人员 | G13: 184.5 | H13: 36.90 | I13: 80.34 | J13: 32.14 | K13: 69.04 | L13: 5
A14: 11 | B14: 黄玉 | C14: 女 | D14: 1152220104028 | E14: 002铜仁交通运输综合行政执法支队 | F14: 03工作人员 | G14: 188 | H14: 37.60 | I14: 76.04 | J14: 30.42 | K14: 68.02 | L14: 6
A15: 12 | B15: 田一民 | C15: 女 | D15: 1152220108728 | E15: 003铜仁退役军人服务中心 | F15: 04工作人员 | G15: 212.5 | H15: 42.50 | I15: 80.26 | J15: 32.10 | K15: 74.60 | L15: 1 | M15: 是
A16: 13 | B16: 游敏 | C16: 女 | D16: 1152220111606 | E16: 003铜仁退役军人服务中心 | F16: 04工作人员 | G16: 208.5 | H16: 41.70 | I16: 79.38 | J16: 31.75 | K16: 73.45 | L16: 2
A17: 14 | B17: 张金蓉 | C17: 女 | D17: 1152220111012 | E17: 003铜仁退役军人服务中心 | F17: 04工作人员 | G17: 207 | H17: 41.40 | I17: 79.96 | J17: 31.98 | K17: 73.38 | L17: 3
A18: 15 | B18: 杜思进 | C18: 女 | D18: 1152220101119 | E18: 004铜仁人民政府法律顾问事务服务处 | F18: 05工作人员 | G18: 198 | H18: 39.60 | I18: 78.12 | J18: 31.25 | K18: 70.85 | L18: 1 | M18: 是
A19: 16 | B19: 杨娅 | C19: 女 | D19: 1152220100622 | E19: 004铜仁人民政府法律顾问事务服务处 | F19: 05工作人员 | G19: 194 | H19: 38.80 | I19: 77.46 | J19: 30.98 | K19: 69.78 | L19: 2
A20: 17 | B20: 谢志坚 | C20: 男 | D20: 1152220103109 | E20: 004铜仁人民政府法律顾问事务服务处 | F20: 05工作人员 | G20: 195 | H20: 39.00 | I20: 76.24 | J20: 30.50 | K20: 69.50 | L20: 3
A21: 18 | B21: 龙珍敏 | C21: 女 | D21: 1152220111010 | E21: 005铜仁12345政务服务便民热线中心 | F21: 06工作人员 | G21: 200.5 | H21: 40.10 | I21: 78.32 | J21: 31.33 | K21: 71.43 | L21: 1 | M21: 是
A22: 19 | B22: 罗桥贵 | C22: 男 | D22: 1152220110404 | E22: 005铜仁12345政务服务便民热线中心 | F22: 06工作人员 | G22: 198 | H22: 39.60 | I22: 78.70 | J22: 31.48 | K22: 71.08 | L22: 2
A23: 20 | B23: 罗彬 | C23: 男 | D23: 1152220108924 | E23: 005铜仁12345政务服务便民热线中心 | F23: 06工作人员 | G23: 196 | H23: 39.20 | I23: 74.42 | J23: 29.77 | K23: 68.97 | L23: 3
A24: 21 | B24: 刘维 | C24: 女 | D24: 1152220105312 | E24: 006铜仁住房公积金管理中心 | F24: 07专业技术人员 | G24: 211.5 | H24: 42.30 | I24: 84.74 | J24: 33.90 | K24: 76.20 | L24: 1 | M24: 是
A25: 22 | B25: 滕召维 | C25: 男 | D25: 1152220104324 | E25: 006铜仁住房公积金管理中心 | F25: 07专业技术人员 | G25: 215 | H25: 43.00 | I25: 74.48 | J25: 29.79 | K25: 72.79 | L25: 2
A26: 23 | B26: 吴宽 | C26: 男 | D26: 1152220104714 | E26: 006铜仁住房公积金管理中心 | F26: 07专业技术人员 | G26: 200 | H26: 40.00 | I26: 74.04 | J26: 29.62 | K26: 69.62 | L26: 3
A27: 24 | B27: 龙振兴 | C27: 男 | D27: 1152220110112 | E27: 007铜仁文学艺术界联合会《梵净山》编辑部（铜仁网络文艺传播中心） | F27: 08工作人员 | G27: 214 | H27: 42.80 | I27: 84.72 | J27: 33.89 | K27: 76.69 | L27: 1 | M27: 是
A28: 25 | B28: 黄诗琪 | C28: 女 | D28: 1152220111205 | E28: 007铜仁文学艺术界联合会《梵净山》编辑部（铜仁网络文艺传播中心） | F28: 08工作人员 | G28: 214.5 | H28: 42.90 | I28: 80.32 | J28: 32.13 | K28: 75.03 | L28: 2
A29: 26 | B29: 杨杰 | C29: 女 | D29: 1152220109510 | E29: 007铜仁文学艺术界联合会《梵净山》编辑部（铜仁网络文艺传播中心） | F29: 08工作人员 | G29: 206 | H29: 41.20 | I29: 77.66 | J29: 31.06 | K29: 72.26 | L29: 3
A30: 27 | B30: 杨易平 | C30: 女 | D30: 1152220104529 | E30: 008贵州健康职业学院 | F30: 09专任教师 | G30: 178 | H30: 35.60 | I30: 82.14 | J30: 32.86 | K30: 68.46 | L30: 1 | M30: 是
A31: 28 | B31: 马江南 | C31: 女 | D31: 1152220109619 | E31: 008贵州健康职业学院 | F31: 09专任教师 | G31: 164 | H31: 32.80 | I31: 80.16 | J31: 32.06 | K31: 64.86 | L31: 2 | M31: 是
A32: 29 | B32: 张飞 | C32: 女 | D32: 1152220104627 | E32: 008贵州健康职业学院 | F32: 09专任教师 | G32: 154.5 | H32: 30.90 | I32: 76.36 | J32: 30.54 | K32: 61.44 | L32: 3
A33: 30 | B33: 刘攀 | C33: 男 | D33: 1152220102530 | E33: 008贵州健康职业学院 | F33: 09专任教师 | G33: 134 | H33: 26.80 | I33: 83.76 | J33: 33.50 | K33: 60.30 | L33: 4
A34: 31 | B34: 敖婷婷 | C34: 女 | D34: 1152220107328 | E34: 008贵州健康职业学院 | F34: 10专职辅导员 | G34: 190.5 | H34: 38.10 | I34: 85.62 | J34: 34.25 | K34: 72.35 | L34: 1 | M34: 是
A35: 32 | B35: 赵镓藜 | C35: 女 | D35: 1152220102505 | E35: 008贵州健康职业学院 | F35: 10专职辅导员 | G35: 190.5 | H35: 38.10 | I35: 83.40 | J35: 33.36 | K35: 71.46 | L35: 2 | M35: 是
A36: 33 | B36: 张亚莲 | C36: 女 | D36: 1152220108714 | E36: 008贵州健康职业学院 | F36: 10专职辅导员 | G36: 191 | H36: 38.20 | I36: 82.00 | J36: 32.80 | K36: 71.00 | L36: 3 | M36: 是
A37: 34 | B37: 黄玉芳 | C37: 女 | D37: 1152220111105 | E37: 008贵州健康职业学院 | F37: 10专职辅导员 | G37: 188 | H37: =G37/3*60% -> 37.60 | I37: 82.58 | J37: =I37*40% -> 33.03 | K37: 70.63 | L37: 4 | M37: 是
A38: 35 | B38: 杨慧 | C38: 女 | D38: 1152220101026 | E38: 008贵州健康职业学院 | F38: 10专职辅导员 | G38: 185.5 | H38: 37.10 | I38: 82.16 | J38: 32.86 | K38: 69.96 | L38: 5 | M38: 是
A39: 36 | B39: 邵晓庆 | C39: 女 | D39: 1152220111817 | E39: 008贵州健康职业学院 | F39: 10专职辅导员 | G39: 177 | H39: 35.40 | I39: 84.04 | J39: 33.62 | K39: 69.02 | L39: 6
A40: 37 | B40: 赵海菲 | C40: 女 | D40: 1152220105030 | E40: 008贵州健康职业学院 | F40: 10专职辅导员 | G40: 177.5 | H40: 35.50 | I40: 83.48 | J40: 33.39 | K40: 68.89 | L40: 7
A41: 38 | B41: 赵旭琴 | C41: 女 | D41: 1152220103508 | E41: 008贵州健康职业学院 | F41: 10专职辅导员 | G41: 182 | H41: 36.40 | I41: 80.68 | J41: 32.27 | K41: 68.67 | L41: 8
A42: 39 | B42: 符开庆 | C42: 女 | D42: 1152220109008 | E42: 008贵州健康职业学院 | F42: 10专职辅导员 | G42: 180 | H42: 36.00 | I42: 81.36 | J42: 32.54 | K42: 68.54 | L42: 9
A43: 40 | B43: 王涛 | C43: 男 | D43: 1152220111211 | E43: 008贵州健康职业学院 | F43: 10专职辅导员 | G43: 182.5 | H43: 36.50 | I43: 79.68 | J43: 31.87 | K43: 68.37 | L43: 10
A44: 41 | B44: 张玲艳 | C44: 女 | D44: 1152220102007 | E44: 008贵州健康职业学院 | F44: 10专职辅导员 | G44: 175 | H44: 35.00 | I44: 83.34 | J44: 33.34 | K44: 68.34 | L44: 11
A45: 42 | B45: 龙云舒 | C45: 女 | D45: 1152220103416 | E45: 008贵州健康职业学院 | F45: 10专职辅导员 | G45: 178.5 | H45: 35.70 | I45: 81.18 | J45: 32.47 | K45: 68.17 | L45: 12
A46: 43 | B46: 张艳 | C46: 女 | D46: 1152220110826 | E46: 008贵州健康职业学院 | F46: 10专职辅导员 | G46: 171.5 | H46: 34.30 | I46: 80.88 | J46: 32.35 | K46: 66.65 | L46: 13
A47: 44 | B47: 冉芳 | C47: 女 | D47: 1152220108015 | E47: 008贵州健康职业学院 | F47: 10专职辅导员 | G47: 173 | H47: 34.60 | I47: 75.52 | J47: 30.21 | K47: 64.81 | L47: 14
A48: 45 | B48: 黄万庆 | C48: 男 | D48: 1152220106310 | E48: 008贵州健康职业学院 | F48: 10专职辅导员 | G48: 189.5 | H48: 37.90 | I48: 缺考 | J48: 0.00 | K48: 37.90 | L48: 15
A49: 46 | B49: 雷文丽 | C49: 女 | D49: 1152220101205 | E49: 009铜仁幼儿师范高等专科学校(含旅游学校、附属幼儿园) | F49: 11学前教育教师 | G49: 178.5 | H49: 35.70 | I49: 79.94 | J49: 31.98 | K49: =H49+J49 -> 67.68 | L49: 1 | M49: 是
A50: 47 | B50: 黎姿 | C50: 女 | D50: 1152220100115 | E50: 009铜仁幼儿师范高等专科学校(含旅游学校、附属幼儿园) | F50: 11学前教育教师 | G50: 167 | H50: 33.40 | I50: 80.20 | J50: 32.08 | K50: 65.48 | L50: 2
A51: 48 | B51: 张亚岚 | C51: 女 | D51: 1152220106406 | E51: 009铜仁幼儿师范高等专科学校(含旅游学校、附属幼儿园) | F51: 11学前教育教师 | G51: 159 | H51: 31.80 | I51: 79.94 | J51: 31.98 | K51: 63.78 | L51: 3
A52: 49 | B52: 严贝 | C52: 女 | D52: 1152220101917 | E52: 009铜仁幼儿师范高等专科学校(含旅游学校、附属幼儿园) | F52: 12早期教育教师 | G52: 186 | H52: 37.20 | I52: 79.74 | J52: 31.90 | K52: 69.10 | L52: 1 | M52: 是
A53: 50 | B53: 徐方艳 | C53: 女 | D53: 1152220105511 | E53: 009铜仁幼儿师范高等专科学校(含旅游学校、附属幼儿园) | F53: 12早期教育教师 | G53: 166.5 | H53: 33.30 | I53: 75.32 | J53: 30.13 | K53: 63.43 | L53: 2
A54: 51 | B54: 田江涛 | C54: 女 | D54: 1152220102002 | E54: 009铜仁幼儿师范高等专科学校(含旅游学校、附属幼儿园) | F54: 13特殊教育教师 | G54: 169 | H54: 33.80 | I54: 79.12 | J54: 31.65 | K54: 65.45 | L54: 1 | M54: 是
A55: 52 | B55: 严海琼 | C55: 女 | D55: 1152220102406 | E55: 009铜仁幼儿师范高等专科学校(含旅游学校、附属幼儿园) | F55: 13特殊教育教师 | G55: 155 | H55: 31.00 | I55: 74.92 | J55: 29.97 | K55: 60.97 | L55: 2
A56: 53 | B56: 冷姣青 | C56: 女 | D56: 1152220105828 | E56: 009铜仁幼儿师范高等专科学校(含旅游学校、附属幼儿园) | F56: 13特殊教育教师 | G56: 146.5 | H56: 29.30 | I56: 77.18 | J56: 30.87 | K56: 60.17 | L56: 3
A57: 54 | B57: 王瑞康 | C57: 男 | D57: 1152220104203 | E57: 009铜仁幼儿师范高等专科学校(含旅游学校、附属幼儿园) | F57: 14思政教师 | G57: 176 | H57: 35.20 | I57: 79.42 | J57: 31.77 | K57: 66.97 | L57: 1 | M57: 是
A58: 55 | B58: 侯海兰 | C58: 女 | D58: 1152220111530 | E58: 009铜仁幼儿师范高等专科学校(含旅游学校、附属幼儿园) | F58: 14思政教师 | G58: 132.5 | H58: 26.50 | I58: 79.00 | J58: 31.60 | K58: 58.10 | L58: 2
A59: 56 | B59: 罗淑芳 | C59: 女 | D59: 1152220100525 | E59: 009铜仁幼儿师范高等专科学校(含旅游学校、附属幼儿园) | F59: 16旅游管理教师 | G59: 192.5 | H59: 38.50 | I59: 82.56 | J59: 33.02 | K59: 71.52 | L59: 1 | M59: 是
A60: 57 | B60: 张百欧 | C60: 女 | D60: 1152220105325 | E60: 009铜仁幼儿师范高等专科学校(含旅游学校、附属幼儿园) | F60: 16旅游管理教师 | G60: 188 | H60: 37.60 | I60: 81.30 | J60: 32.52 | K60: 70.12 | L60: 2 | M60: 是
A61: 58 | B61: 龚丽杉 | C61: 女 | D61: 1152220106305 | E61: 009铜仁幼儿师范高等专科学校(含旅游学校、附属幼儿园) | F61: 16旅游管理教师 | G61: 191 | H61: 38.20 | I61: 78.52 | J61: 31.41 | K61: 69.61 | L61: 3
A62: 59 | B62: 黄舒琦 | C62: 女 | D62: 1152220107020 | E62: 009铜仁幼儿师范高等专科学校(含旅游学校、附属幼儿园) | F62: 16旅游管理教师 | G62: 175.5 | H62: 35.10 | I62: 77.56 | J62: 31.02 | K62: 66.12 | L62: 4
A63: 60 | B63: 王淼 | C63: 女 | D63: 1152220104424 | E63: 009铜仁幼儿师范高等专科学校(含旅游学校、附属幼儿园) | F63: 16旅游管理教师 | G63: 174.5 | H63: 34.90 | I63: 77.64 | J63: 31.06 | K63: 65.96 | L63: 5
A64: 61 | B64: 陈青 | C64: 女 | D64: 1152220101914 | E64: 009铜仁幼儿师范高等专科学校(含旅游学校、附属幼儿园) | F64: 16旅游管理教师 | G64: 177.5 | H64: 35.50 | I64: 缺考 | J64: 0.00 | K64: 35.50 | L64: 6
A65: 62 | B65: 李治林 | C65: 男 | D65: 1152220106614 | E65: 009铜仁幼儿师范高等专科学校(含旅游学校、附属幼儿园) | F65: 17数学教师 | G65: 167 | H65: 33.40 | I65: 78.40 | J65: =I65*40% -> 31.36 | K65: =H65+J65 -> 64.76 | L65: 1 | M65: 是
A66: 63 | B66: 赵鹏程 | C66: 男 | D66: 1152220107316 | E66: 009铜仁幼儿师范高等专科学校(含旅游学校、附属幼儿园) | F66: 17数学教师 | G66: 158 | H66: 31.60 | I66: 77.60 | J66: =I66*40% -> 31.04 | K66: =H66+J66 -> 62.64 | L66: 2
A67: 64 | B67: 王涛 | C67: 男 | D67: 1152220105814 | E67: 009铜仁幼儿师范高等专科学校(含旅游学校、附属幼儿园) | F67: 17数学教师 | G67: 121.5 | H67: 24.30 | I67: 80.46 | J67: =I67*40% -> 32.18 | K67: =H67+J67 -> 56.48 | L67: 3
A68: 65 | B68: 杨光伟 | C68: 男 | D68: 1152220102905 | E68: 009铜仁幼儿师范高等专科学校(含旅游学校、附属幼儿园) | F68: 18体育教师 | G68: 167 | H68: 33.40 | I68: 79.42 | J68: 31.77 | K68: =H68+J68 -> 65.17 | L68: 1 | M68: 是
A69: 66 | B69: 芦雪杨 | C69: 女 | D69: 1152220104810 | E69: 009铜仁幼儿师范高等专科学校(含旅游学校、附属幼儿园) | F69: 18体育教师 | G69: 159 | H69: =G69/3*60% -> 31.80 | I69: 79.88 | J69: 31.95 | K69: 63.75 | L69: 2
A70: 67 | B70: 龚丽娟 | C70: 女 | D70: 1152220110424 | E70: 009铜仁幼儿师范高等专科学校(含旅游学校、附属幼儿园) | F70: 18体育教师 | G70: 152 | H70: 30.40 | I70: 74.30 | J70: 29.72 | K70: 60.12 | L70: 3
A71: 68 | B71: 魏雪飞 | C71: 女 | D71: 1152220112021 | E71: 009铜仁幼儿师范高等专科学校(含旅游学校、附属幼儿园) | F71: 19计算机教师 | G71: 171 | H71: 34.20 | I71: 80.92 | J71: 32.37 | K71: 66.57 | L71: 1 | M71: 是
A72: 69 | B72: 赵祖梅 | C72: 女 | D72: 1152220107116 | E72: 009铜仁幼儿师范高等专科学校(含旅游学校、附属幼儿园) | F72: 19计算机教师 | G72: 163.5 | H72: 32.70 | I72: 77.12 | J72: 30.85 | K72: 63.55 | L72: 2
A73: 70 | B73: 李芳怡 | C73: 女 | D73: 1152220105522 | E73: 009铜仁幼儿师范高等专科学校(含旅游学校、附属幼儿园) | F73: 19计算机教师 | G73: 141 | H73: 28.20 | I73: 74.48 | J73: 29.79 | K73: 57.99 | L73: 3
A74: 71 | B74: 唐铷萍 | C74: 女 | D74: 1152220110314 | E74: 009铜仁幼儿师范高等专科学校(含旅游学校、附属幼儿园) | F74: 20智慧健康养老服务与管理教师 | G74: 118 | H74: 23.60 | I74: 73.76 | J74: 29.50 | K74: 53.10 | L74: 1 | M74: 未达合格分数线
A75: 72 | B75: 冉佩灵 | C75: 女 | D75: 1152220109406 | E75: 009铜仁幼儿师范高等专科学校(含旅游学校、附属幼儿园) | F75: 21辅导员 | G75: 120 | H75: 24.00 | I75: 72.44 | J75: 28.98 | K75: 52.98 | L75: 1 | M75: 未达合格分数线
A76: 73 | B76: 龙丝 | C76: 女 | D76: 1152220109523 | E76: 009铜仁幼儿师范高等专科学校(含旅游学校、附属幼儿园) | F76: 21辅导员 | G76: 151 | H76: 30.20 | I76: 缺考 | J76: 0.00 | K76: 30.20 | L76: 2
A77: 74 | B77: 李芳 | C77: 女 | D77: 1152220105006 | E77: 009铜仁幼儿师范高等专科学校(含旅游学校、附属幼儿园) | F77: 22教辅人员 | G77: 192.5 | H77: 38.50 | I77: 84.88 | J77: =I77*40% -> 33.95 | K77: =H77+J77 -> 72.45 | L77: 1 | M77: 是
A78: 75 | B78: 谭霖 | C78: 女 | D78: 1152220100316 | E78: 009铜仁幼儿师范高等专科学校(含旅游学校、附属幼儿园) | F78: 22教辅人员 | G78: 187.5 | H78: 37.50 | I78: 75.62 | J78: =I78*40% -> 30.25 | K78: =H78+J78 -> 67.75 | L78: 2
A79: 76 | B79: 周益 | C79: 女 | D79: 1152220104224 | E79: 009铜仁幼儿师范高等专科学校(含旅游学校、附属幼儿园) | F79: 22教辅人员 | G79: 189 | H79: 37.80 | I79: 缺考 | J79: 0.00 | K79: 37.80 | L79: 3
A80: 77 | B80: 胡江红 | C80: 女 | D80: 1152220106309 | E80: 009铜仁幼儿师范高等专科学校(含旅游学校、附属幼儿园) | F80: 23医务室工作人员 | G80: 211.5 | H80: 42.30 | I80: 79.70 | J80: =I80*40% -> 31.88 | K80: =H80+J80 -> 74.18 | L80: 1 | M80: 是
A81: 78 | B81: 袁家茜 | C81: 女 | D81: 1152220101204 | E81: 009铜仁幼儿师范高等专科学校(含旅游学校、附属幼儿园) | F81: 23医务室工作人员 | G81: 192.5 | H81: 38.50 | I81: 82.12 | J81: 32.85 | K81: 71.35 | L81: 2
A82: 79 | B82: 贺秀英 | C82: 女 | D82: 1152220110805 | E82: 009铜仁幼儿师范高等专科学校(含旅游学校、附属幼儿园) | F82: 23医务室工作人员 | G82: 188 | H82: 37.60 | I82: 78.28 | J82: 31.31 | K82: 68.91 | L82: 3
A83: 80 | B83: 唐琳 | C83: 女 | D83: 1152220106824 | E83: 009铜仁幼儿师范高等专科学校(含旅游学校、附属幼儿园) | F83: 24幼儿园教师 | G83: 168 | H83: 33.60 | I83: 82.86 | J83: 33.14 | K83: 66.74 | L83: 1 | M83: 是
A84: 81 | B84: 鲁汪 | C84: 男 | D84: 1152220108120 | E84: 009铜仁幼儿师范高等专科学校(含旅游学校、附属幼儿园) | F84: 24幼儿园教师 | G84: 156 | H84: 31.20 | I84: 75.40 | J84: 30.16 | K84: 61.36 | L84: 2
A85: 82 | B85: 李倩 | C85: 女 | D85: 1152220107327 | E85: 009铜仁幼儿师范高等专科学校(含旅游学校、附属幼儿园) | F85: 24幼儿园教师 | G85: 156.5 | H85: 31.30 | I85: 71.90 | J85: 28.76 | K85: 60.06 | L85: 3
A86: 83 | B86: 陈阳 | C86: 女 | D86: 1152220106306 | E86: 009铜仁幼儿师范高等专科学校(含旅游学校、附属幼儿园) | F86: 25幼儿园保教医生 | G86: 191 | H86: 38.20 | I86: 78.26 | J86: 31.30 | K86: 69.50 | L86: 1 | M86: 是
A87: 84 | B87: 李泽松 | C87: 男 | D87: 1152220100328 | E87: 009铜仁幼儿师范高等专科学校(含旅游学校、附属幼儿园) | F87: 25幼儿园保教医生 | G87: 179.5 | H87: 35.90 | I87: 77.80 | J87: 31.12 | K87: 67.02 | L87: 2
A88: 85 | B88: 蒲丽 | C88: 女 | D88: 1152220107524 | E88: 009铜仁幼儿师范高等专科学校(含旅游学校、附属幼儿园) | F88: 25幼儿园保教医生 | G88: 173.5 | H88: 34.70 | I88: 缺考 | J88: 0.00 | K88: 34.70 | L88: 3
A89: 86 | B89: 秦霖 | C89: 女 | D89: 5452220202610 | E89: 010铜仁职业技术学院附属医院 | F89: 26护士 | G89: 179.9 | H89: 35.98 | I89: 78.72 | J89: =I89*40% -> 31.49 | K89: =H89+J89 -> 67.47 | L89: 1 | M89: 是
A90: 87 | B90: 付嘉玲 | C90: 女 | D90: 5452220202518 | E90: 010铜仁职业技术学院附属医院 | F90: 26护士 | G90: 168.7 | H90: 33.74 | I90: 78.58 | J90: 31.43 | K90: 65.17 | L90: 2 | M90: 是
A91: 88 | B91: 任雪梅 | C91: 女 | D91: 5452220202402 | E91: 010铜仁职业技术学院附属医院 | F91: 26护士 | G91: 170.3 | H91: 34.06 | I91: 75.04 | J91: 30.02 | K91: 64.08 | L91: 3
A92: 89 | B92: 唐娅倩 | C92: 女 | D92: 5452220202403 | E92: 010铜仁职业技术学院附属医院 | F92: 26护士 | G92: 155.3 | H92: 31.06 | I92: 77.18 | J92: 30.87 | K92: 61.93 | L92: 4
A93: 90 | B93: 袁娜娜 | C93: 女 | D93: 5452220201918 | E93: 010铜仁职业技术学院附属医院 | F93: 26护士 | G93: 157.5 | H93: 31.50 | I93: 74.14 | J93: 29.66 | K93: 61.16 | L93: 5
A94: 91 | B94: 郑邹玲 | C94: 女 | D94: 5452220202501 | E94: 010铜仁职业技术学院附属医院 | F94: 26护士 | G94: 159.8 | H94: 31.96 | I94: 60.00 | J94: 24.00 | K94: 55.96 | L94: 6
A95: 92 | B95: 罗腾 | C95: 男 | D95: 5252220202918 | E95: 012铜仁妇幼保健院 | F95: 28临床医师 | G95: 185.7 | H95: 37.14 | I95: 72.68 | J95: 29.07 | K95: 66.21 | L95: 1 | M95: 是
A96: 93 | B96: 李玉霞 | C96: 女 | D96: 5252220201720 | E96: 012铜仁妇幼保健院 | F96: 28临床医师 | G96: 179.8 | H96: 35.96 | I96: 75.02 | J96: 30.01 | K96: 65.97 | L96: 2 | M96: 是
A97: 94 | B97: 刘俊 | C97: 男 | D97: 5252220202914 | E97: 012铜仁妇幼保健院 | F97: 28临床医师 | G97: 185.7 | H97: 37.14 | I97: 71.30 | J97: 28.52 | K97: 65.66 | L97: 3 | M97: 是
A98: 95 | B98: 吴诗棋 | C98: 女 | D98: 5252220201711 | E98: 012铜仁妇幼保健院 | F98: 28临床医师 | G98: 177.1 | H98: 35.42 | I98: 73.70 | J98: 29.48 | K98: 64.90 | L98: 4
A99: 96 | B99: 杨通军 | C99: 男 | D99: 5252220201606 | E99: 012铜仁妇幼保健院 | F99: 28临床医师 | G99: 164.5 | H99: 32.90 | I99: 75.16 | J99: 30.06 | K99: 62.96 | L99: 5
A100: 97 | B100: 龙沙 | C100: 女 | D100: 5252220201705 | E100: 012铜仁妇幼保健院 | F100: 28临床医师 | G100: 166.5 | H100: 33.30 | I100: 72.76 | J100: 29.10 | K100: 62.40 | L100: 6
A101: 98 | B101: 宁宏妃 | C101: 女 | D101: 5252220201729 | E101: 012铜仁妇幼保健院 | F101: 28临床医师 | G101: 166.4 | H101: 33.28 | I101: 71.86 | J101: 28.74 | K101: 62.02 | L101: 7
A102: 99 | B102: 郑泱 | C102: 女 | D102: 5252220201610 | E102: 012铜仁妇幼保健院 | F102: 28临床医师 | G102: 158.9 | H102: 31.78 | I102: 72.70 | J102: 29.08 | K102: 60.86 | L102: 8
A103: 100 | B103: 陈乔芬 | C103: 女 | D103: 5252220201730 | E103: 012铜仁妇幼保健院 | F103: 28临床医师 | G103: 161.7 | H103: 32.34 | I103: 70.40 | J103: 28.16 | K103: 60.50 | L103: 9
A104: 101 | B104: 晏蓉 | C104: 女 | D104: 5252220201612 | E104: 013铜仁第三人民医院 | F104: 29临床医师 | G104: 171.1 | H104: 34.22 | I104: 73.10 | J104: 29.24 | K104: 63.46 | L104: 1 | M104: 是
A105: 102 | B105: 樊一丹 | C105: 女 | D105: 5252220201717 | E105: 013铜仁第三人民医院 | F105: 29临床医师 | G105: 164 | H105: 32.80 | I105: 74.36 | J105: 29.74 | K105: 62.54 | L105: 2
A106: 103 | B106: 吴森标 | C106: 男 | D106: 5252220201605 | E106: 013铜仁第三人民医院 | F106: 29临床医师 | G106: 160.4 | H106: 32.08 | I106: 73.82 | J106: 29.53 | K106: 61.61 | L106: 3
A107: 104 | B107: 张绍立 | C107: 女 | D107: 1152220109910 | E107: 14大龙街道民生事业服务中心 | F107: 31工作人员 | G107: 197.5 | H107: 39.50 | I107: 80.60 | J107: 32.24 | K107: 71.74 | L107: 1 | M107: 是
A108: 105 | B108: 严俊秀 | C108: 女 | D108: 1152220101422 | E108: 14大龙街道民生事业服务中心 | F108: 31工作人员 | G108: 196.5 | H108: 39.30 | I108: 79.92 | J108: 31.97 | K108: 71.27 | L108: 2
A109: 106 | B109: 余欢欢 | C109: 女 | D109: 1152220107720 | E109: 14大龙街道民生事业服务中心 | F109: 31工作人员 | G109: 197 | H109: 39.40 | I109: 67.90 | J109: 27.16 | K109: 66.56 | L109: 3
A110: 107 | B110: 黄庭辉 | C110: 男 | D110: 1152220200302 | E110: 15麻音塘街道综治中心（网格化管理服务中心） | F110: 32工作人员 | G110: 207.5 | H110: 41.50 | I110: 81.12 | J110: 32.45 | K110: 73.95 | L110: 1 | M110: 是
A111: 108 | B111: 涂华健 | C111: 男 | D111: 1152220200913 | E111: 15麻音塘街道综治中心（网格化管理服务中心） | F111: 32工作人员 | G111: 207 | H111: 41.40 | I111: 77.78 | J111: 31.11 | K111: 72.51 | L111: 2
A112: 109 | B112: 杨兵帅 | C112: 男 | D112: 1152220200926 | E112: 15麻音塘街道综治中心（网格化管理服务中心） | F112: 32工作人员 | G112: 189 | H112: 37.80 | I112: 75.72 | J112: 30.29 | K112: 68.09 | L112: 3
A113: 110 | B113: 邹洪琴 | C113: 女 | D113: 1152220200418 | E113: 16大龙（一矿两厂）社区服务管理局离退休中心 | F113: 33工作人员 | G113: 194 | H113: 38.80 | I113: 80.72 | J113: 32.29 | K113: 71.09 | L113: 1 | M113: 是
A114: 111 | B114: 杨佳怡 | C114: 女 | D114: 1152220200918 | E114: 16大龙（一矿两厂）社区服务管理局离退休中心 | F114: 33工作人员 | G114: 196 | H114: 39.20 | I114: 76.66 | J114: 30.66 | K114: 69.86 | L114: 2
A115: 112 | B115: 陈诗 | C115: 女 | D115: 1152220201201 | E115: 16大龙（一矿两厂）社区服务管理局离退休中心 | F115: 33工作人员 | G115: 189.5 | H115: 37.90 | I115: 74.86 | J115: 29.94 | K115: 67.84 | L115: 3
A116: 113 | B116: 杨若菲 | C116: 女 | D116: 4152220201521 | E116: 011铜仁市特殊教育学校 | F116: 27教师 | G116: 213 | H116: 42.6 | I116: 88.33 | J116: 35.33 | K116: 77.93 | L116: 1 | M116: 是
A117: 114 | B117: 姜凡 | C117: 女 | D117: 4152220201503 | E117: 011铜仁市特殊教育学校 | F117: 27教师 | G117: 194 | H117: 38.8 | I117: 84.00 | J117: 33.60 | K117: 72.40 | L117: 2
A118: 115 | B118: 张阳 | C118: 女 | D118: 4152220201507 | E118: 011铜仁市特殊教育学校 | F118: 27教师 | G118: 182 | H118: 36.4 | I118: 缺考 | J118: 0.00 | K118: 36.40 | L118: 3
